[Event "Satranc Arena IM Series-1 2024"]
[Site "Izmir"]
[Date "2024.03.22"]
[Round "9.3"]
[White "Baltag, Iulian"]
[Black "Yalcinkaya, Efe"]
[Result "1-0"]
[ECO "A37"]
[WhiteElo "2412"]
[BlackElo "2085"]
[Annotator "TA"]
[PlyCount "83"]
[EventDate "2024.03.22"]
[EventCountry "TUR"]
[SourceTitle "playchess.com"]
[Source "ChessBase"]
[SourceQuality "1"]
[TimeControl "5400+30"]

{[%evp 22,83,0,-16,0,0,-2,-8,-16,-37,-35,-66,-38,-47,-40,-57,-26,-37,-6,-64,-66,-79,0,-6,-2,-68,-22,-87,0,0,243,280,388,398,379,372,379,342,354,243,425,250,257,235,253,239,263,253,358,256,427,323,454,419,542,536,729,733,752,750,734,664,721,714]} 1. c4 {[%emt 0:00:02]} c5 {[%emt 0:00:03]} 2. g3 {[%emt 0:00:16]} Nc6 {[%emt 0:00:04]} 3. Bg2 {[%emt 0:00:05]} g6 {[%emt 0:00:04]} 4. Nc3 {[%emt 0:00:10]} Bg7 {[%emt 0:00:05]} 5. Nf3 {[%emt 0:00:10][%cal Bg1f3,Bf3e1,Be1c2,Bc2e3,Be3d5][%mdl 32]} e5 {[%emt 0:00:32]} 6. O-O {[%emt 0:00:16]} Nge7 {[%emt 0:00:05]} 7. Ne1 {[%emt 0:00:12]} O-O {[%emt 0:00:52]} 8. Nc2 {[%emt 0:00:10]} d6 {[%emt 0:00:23]} 9. Ne3 {[%emt 0:00:16]} Be6 {[%emt 0:00:06]} 10. Ned5 {[%emt 0:00:08]} a6 {[%emt 0:01:05]} 11. d3 {[%emt 0:00:18]} Rb8 {[%emt 0:02:27]} 12. a4 {[%emt 0:00:44][%cal Oa4a5]} a5 {[%emt 0:02:10]} 13. Bg5 {[%emt 0:00:54]} f6 {[%emt 0:00:45]} 14. Bd2 {[%emt 0:00:06]} Nb4 {[%emt 0:01:49] Die Stellung ist ausgeglichen.} 15. Ne3 {[%emt 0:00:38]} f5 {[%emt 0:05:31]} 16. Nc2 {[%emt 0:00:28]} h6 {[%emt 0:06:53]} 17. Nxb4 {[%emt 0:01:41]} axb4 {[%emt 0:00:54]} 18. Nb5 {[%emt 0:00:16]} g5 {[%emt 0:04:17]} 19. e3 {[%emt 0:03:57]} d5 {[%emt 0:09:31]} 20. cxd5 {[%emt 0:01:04]} (20. d4 $11) 20... Bxd5 $15 {[%emt 0:00:20]} 21. e4 {[%emt 0:00:13] [#]} Bc6 {[%emt 0:02:51]} (21... Be6 $1 $17 {Zielt auf ...f4 ab.} 22. exf5 Bxf5) 22. Qb3+ {[%emt 0:00:42]} Kh7 {[%emt 0:02:22] und nun wäre ...f4 stark für Schwarz.} 23. exf5 {[%emt 1:29:14]} (23. Qc4 $11) 23... Nxf5 {[%emt 0:02:01]} (23... Bxg2 $15 24. Kxg2 Nxf5) 24. Qc4 {[%emt 0:00:00]} (24. Be4 $1 $11 {hält das Gleichgewicht.}) 24... Qf6 {[%emt 0:04:34]} ({Besser ist} 24... Bxg2 $17 25. Kxg2 b6) 25. Be4 {[%emt 0:00:00]} b6 $2 {[%emt 0:04:40] Weiß behält die Zügel nun fest in der Hand.} (25... Bxe4 $11 26. dxe4 Nh4 27. gxh4 Qf3 28. hxg5 Rbd8 (28... Qg4+ 29. Kh1 $11)) 26. g4 $18 {[%emt 0:00:00]} Kh8 {[%emt 0:01:10] [#] ...Bxe4 ist eine echte Drohung.} 27. gxf5 {[%emt 0:00:00]} ({Bloß nicht} 27. Bxf5 Bf3 28. Be3 Qc6) 27... Bd7 {[%emt 0:00:11]} 28. Be3 {[%emt 0:00:00]} Bxf5 {[%emt 0:00:15]} 29. Bxf5 {[%emt 0:00:00]} Qxf5 {[%emt 0:00:04]} 30. Qe4 {[%emt 0:03:30]} Qh3 $2 (30... Qd7 31. Kg2 Rbd8) 31. f3 {[%emt 0:00:00]} (31. Nd6 $142) 31... Qd7 {[%emt 0:00:44]} 32. Rad1 {[%emt 0:00:00]} Ra8 {[%emt 0:00:28]} 33. b3 {[%emt 0:00:00]} Rae8 {[%emt 0:00:38]} 34. Kg2 {[%emt 0:00:00]} Bf6 {[%emt 0:00:40]} (34... Rf6 $142 35. Bf2 Rf4) 35. h3 {[%emt 0:00:00][%cal Bh2h3,Bh3h4,Bh4g5][%mdl 32]} Kg7 $2 {[%emt 0:00:10]} (35... Re7 {war einen Versuch wert.} 36. Rf2 Bg7) 36. Qg4 {[%emt 0:00:00]} Qc6 {[%emt 0:00:24]} (36... Re7 $142 37. Kf2 Kh7) 37. h4 {[%emt 0:00:00]} h5 {[%emt 0:00:04]} 38. Qe4 {[%emt 0:00:00] Weiß steht klar auf Gewinn.} Qd7 {[%emt 0:00:13]} 39. hxg5 {[%emt 0:00:00]} Bd8 {[%emt 0:00:02]} 40. Rh1 {[%emt 0:00:00]} Rh8 {[%emt 0:00:44]} 41. Rh4 {[%emt 0:00:00]} Qe6 {[%emt 0:00:03]} 42. Rdh1 {[%emt 0:00:00] Gewichteter Fehlerwert: Weiß=0.36/Schwarz=0.66.  Verlustzug:     	---       	Schwarz=1     Fehler:       	Weiß=4     	Schwarz=7     Ungenau:       	Weiß=2     	Schwarz=5     OK:         	Weiß=9     	Schwarz=8     Bester:       	Weiß=1     	---} 1-0

[Event "Satranc Arena IM Series-1 2024"]
[Site "Izmir"]
[Date "2024.03.22"]
[Round "9.4"]
[White "Ozsakallioglu, Okan"]
[Black "Kuru, Atilla"]
[Result "1/2-1/2"]
[ECO "B48"]
[WhiteElo "2365"]
[BlackElo "2246"]
[Annotator "TA"]
[PlyCount "121"]
[EventDate "2024.03.22"]
[EventCountry "TUR"]
[SourceTitle "playchess.com"]
[Source "ChessBase"]
[SourceQuality "1"]
[TimeControl "5400+30"]

{[%evp 15,121,7,21,30,10,25,8,17,21,0,24,5,40,37,35,35,40,22,22,31,22,33,19,14,26,7,9,6,18,8,67,56,69,46,48,64,49,34,34,34,34,34,34,34,34,34,34,34,34,34,34,34,32,0,34,34,34,34,34,34,34,34,34,34,34,8,34,5,37,5,47,12,26,8,34,34,34,34,34,0,13,27,41,41,41,41,41,41,41,41,41,0,0,0,0,0,0,0,0,0,0,0,0,0,0,0,0,0]} 1. e4 {[%emt 0:00:01]} c5 {[%emt 0:00:03]} 2. Nf3 {[%emt 0:00:04]} e6 {[%emt 0:00:05]} 3. d4 {[%emt 0:00:03]} cxd4 {[%emt 0:00:03]} 4. Nxd4 {[%emt 0:00:03]} Nc6 {[%emt 0:00:06]} 5. Nc3 {[%emt 0:00:04]} Qc7 {[%emt 0:00:04]} 6. Be3 {[%emt 0:04:01]} a6 {[%emt 0:00:04]} 7. Qd2 {[%emt 0:01:57]} b5 {[%emt 0:01:40]} 8. Nxc6 {[%emt 0:00:57]} Qxc6 {[%emt 0:00:19]} 9. a3 {[%emt 0:03:13]} Nf6 {[%emt 0:01:04]} 10. Bd3 {[%emt 0:00:22]} b4 {[%emt 0:07:41]} 11. axb4 {[%emt 0:02:22]} Bxb4 {[%emt 0:00:09]} 12. Bd4 {[%emt 0:00:12] Qg5 wäre nun fies.} Bb7 {[%emt 0:01:13][%cal Rf6e4]} 13. O-O {[%emt 0:01:51]} (13. Qg5 {hält die Spannung aufrecht.} Nxe4 14. Qxg7 O-O-O 15. f3) 13... Bxc3 {[%emt 0:03:29]} 14. Bxc3 {[%emt 0:01:06] Rfe1 ist eine echte Drohung.} Nxe4 {[%emt 0:00:26] Schwarz hat schwache schwarze Felder} 15. Bxe4 {[%emt 0:00:07]} Qxe4 {[%emt 0:00:04][%csl Gb7][%cal Re4g2] [#]} 16. f3 {[%emt 0:00:07] Aktives Gegenspiel!} (16. Bxg7 $2 Qxg2#) 16... Qd5 {[%emt 0:00:05]} 17. Qxd5 {[%emt 0:00:58]} Bxd5 {[%emt 0:00:07]} 18. Bxg7 {[%emt 0:00:11]} Rg8 {[%emt 0:00:04]} 19. Bd4 {[%emt 0:00:55]} Ke7 {[%emt 0:02:43]} 20. b3 {[%emt 0:02:00]} Bc6 {[%emt 0:01:33]} 21. Ra5 {[%emt 0:00:04]} d5 {[%emt 0:00:17]} 22. f4 {[%emt 0:02:41]} f5 {[%emt 0:00:57]} (22... h5 $11) 23. Rf3 $14 {[%emt 0:00:25]} Rg6 {[%emt 0:04:03]} 24. Kf2 {[%emt 0:06:18]} Kd7 {[%emt 0:02:04]} 25. Rh3 {[%emt 0:00:44]} h6 {[%emt 0:00:09]} 26. Rg3 {[%emt 0:01:08]} Rxg3 {[%emt 0:00:19]} 27. Kxg3 {[%emt 0:00:06][%mdl 4096] Endspiel. KRB-KRB} Rg8+ {[%emt 0:00:09]} 28. Kf2 {[%emt 0:00:04]} Bb5 {[%emt 0:00:04]} 29. b4 {[%emt 0:01:09]} Ke8 {[%emt 0:01:26]} 30. Ra3 {[%emt 0:00:07]} Kf7 {[%emt 0:00:05]} 31. Rh3 {[%emt 0:00:05]} Rg6 {[%emt 0:00:20]} 32. Be5 {[%emt 0:02:21]} Ke7 {[%emt 0:00:17]} 33. Rh4 {[%emt 0:01:00]} Ba4 {[%emt 0:00:18]} 34. Rh3 {[%emt 0:00:50]} Kd7 {[%emt 0:01:33]} 35. Rc3 {[%emt 0:00:12]} Bc6 {[%emt 0:00:02][%cal Od5d4]} 36. g3 {[%emt 0:04:20]} Rg8 {[%emt 0:00:53]} 37. Ra3 {[%emt 0:00:31]} Bb5 {[%emt 0:00:07]} 38. Bd4 {[%emt 0:00:12]} h5 {[%emt 0:00:17]} 39. h4 {[%emt 0:01:53]} Rc8 {[%emt 0:00:10]} 40. Bc5 {[%emt 0:00:13]} Rg8 {[%emt 0:00:21]} 41. Ke1 {[%emt 0:00:31]} Re8 {[%emt 0:00:15]} 42. Re3 {[%emt 0:00:10]} e5 {[%emt 0:07:30]} 43. fxe5 {[%emt 0:00:08]} Ke6 {[%emt 0:00:04]} 44. Kf2 {[%emt 0:07:16]} Rg8 {[%emt 0:00:12]} (44... Rc8 $5) 45. c3 {[%emt 0:01:40]} Rg4 {[%emt 0:00:42]} 46. Bd4 {[%emt 0:00:03]} Bc4 {[%emt 0:00:52]} 47. Kf3 {[%emt 0:00:20]} Bb5 {[%emt 0:00:29]} 48. Re1 {[%emt 0:00:34]} Bd3 {[%emt 0:00:17]} 49. Be3 {[%emt 0:00:21]} Re4 {[%emt 0:00:57]} 50. Kf2 {[%emt 0:00:29]} Rxe5 {[%emt 0:00:48]} 51. Rd1 {[%emt 0:00:31]} Bc4 {[%emt 1:09:01]} 52. Rd4 {[%emt 0:00:12]} Re4 {[%emt 0:00:00]} 53. Rxe4+ {[%emt 0:00:13]} fxe4 {[%emt 0:00:00] KB-KB. Die Stellung ist ausgeglichen.} 54. g4 {[%emt 0:00:09]} hxg4 {[%emt 0:00:00]} 55. h5 {[%emt 0:00:07]} Kf5 {[%emt 0:00:00]} 56. h6 {[%emt 0:00:04] [#] Und h7 würde nun gewinnen.} Kg6 {[%emt 0:00:00]} 57. Kg3 {[%emt 0:00:03]} Be2 {[%emt 0:00:00]} 58. Kh4 {[%emt 0:00:05]} Bd1 {[%emt 0:00:00]} 59. Kg3 {[%emt 0:00:04]} Be2 {[%emt 0:00:00]} 60. Kh4 {[%emt 0:00:03]} Bd1 {[%emt 0:00:00]} 61. Kg3 {[%emt 0:00:01] Gewichteter Fehlerwert: Weiß=0.08 (makellos) /Schwarz=0.08 (makellos) .  Fehler:       	---       	Schwarz=1     Ungenau:       	Weiß=7     	Schwarz=6     OK:         	Weiß=12    	Schwarz=26    Bester:       	Weiß=2     	Schwarz=3} 1/2-1/2

[Event "Satranc Arena IM Series-1 2024"]
[Site "Izmir"]
[Date "2024.03.22"]
[Round "9.5"]
[White "Yermolinsky, Alex"]
[Black "David, Alexandru-Vasile"]
[Result "1/2-1/2"]
[ECO "D35"]
[WhiteElo "2421"]
[BlackElo "2360"]
[Annotator "TA"]
[PlyCount "60"]
[EventDate "2024.03.22"]
[EventCountry "TUR"]
[SourceTitle "playchess.com"]
[Source "ChessBase"]
[SourceQuality "1"]
[TimeControl "5400+30"]

{[%evp 9,60,19,17,3,37,20,6,8,14,-6,13,-24,-33,-27,-25,-37,-23,-27,-11,-22,0,0,23,34,51,26,49,35,58,58,78,53,71,42,86,62,45,38,37,23,22,20,43,55,55,38,56,51,81,81,80,73,68]} 1. d4 {[%emt 0:00:03]} Nf6 {[%emt 0:00:09]} 2. c4 {[%emt 0:00:06]} e6 {[%emt 0:00:06]} 3. Nf3 {[%emt 0:00:42]} d5 {[%emt 0:00:17]} 4. Nc3 {[%emt 0:00:25]} Nbd7 {[%emt 0:01:22]} 5. cxd5 {[%emt 0:04:56]} exd5 {[%emt 0:00:10]} 6. Qc2 {[%emt 0:01:16]} Bb4 {[%emt 0:01:59]} 7. a3 {[%emt 0:11:10]} Bxc3+ {[%emt 0:01:53]} 8. bxc3 {[%emt 0:00:02] The position is equal.} c5 {[%emt 0:01:04]} 9. e3 {[%emt 0:00:03]} Qa5 {[%emt 0:04:53]} 10. Bd2 {[%emt 0:05:03]} c4 {[%emt 0:04:52]} 11. Be2 {[%emt 0:00:05][%cal Bf1e2,Be2f3,Bf3d1,Bd1c2][%mdl 32]} O-O {[%emt 0:00:13]} 12. O-O {[%emt 0:00:03]} Ne4 {[%emt 0:01:56]} 13. Rfc1 {[%emt 0:03:41]} Nb6 {[%emt 0:02:25]} 14. Be1 {[%emt 0:02:06]} Bg4 {[%emt 0:16:56]} 15. h3 {[%emt 0:08:35]} Bxf3 {[%emt 0:02:38]} 16. Bxf3 {[%emt 0:00:16]} f5 {[%emt 0:00:08]} 17. Rcb1 {[%emt 0:03:35]} Rf7 {[%emt 0:04:25]} 18. a4 {[%emt 0:00:10]} Nc8 {[%emt 0:00:43][%cal Bb6c8,Bc8d6,Bd6f7][%mdl 32]} 19. Bd1 {[%emt 0:04:26]} Qc7 {[%emt 0:07:21]} 20. f3 {[%emt 0:01:27]} Ng5 {[%emt 0:00:05]} 21. Qf2 {[%emt 0:12:34]} Qe7 {[%emt 0:03:21]} 22. Bd2 {[%emt 0:02:11][%cal Be1d2,Bd2c1,Bc1a3][%mdl 32]} Ne6 {[%emt 0:11:28]} 23. Bc2 {[%emt 0:03:09]} Nd6 {[%emt 0:01:20]} 24. Qg3 {[%emt 0:00:38]} Qd7 {[%emt 0:00:23]} 25. Re1 {[%emt 0:02:44]} b6 {[%emt 0:02:00]} 26. Bc1 {[%emt 0:05:37]} Rf6 {[%emt 0:00:40]} 27. Re2 {[%emt 0:07:42]} Re8 {[%emt 0:00:52]} 28. Ba3 {[%emt 0:02:55]} Nf7 {[%emt 0:00:53]} 29. Rae1 {[%emt 0:00:46]} Rg6 {[%emt 0:01:46]} 30. Qh2 {[%emt 0:00:17]} Rf6 {[%emt 0:00:44] Weighted Error Value: White=0.09 (flawless) /Black=0.15 (very precise) .  Inaccurate:     	White=2     	Black=3      OK:         	White=9     	Black=5} 1/2-1/2